bitfinex/quotes_ETHUSD_20250623
["timestamp","ask_amount","ask_price","bid_price","bid_amount"]
[1750686245713,0.00666458,2289.0,2288.3,0.39545714]
[1750686245918,0.00666458,2289.0,2288.8,4.3690743]
[1750686246101,0.00666458,2289.0,2288.9,0.39545714]
[1750686246305,0.00666458,2289.0,2288.9,0.39676845]
[1750686246505,0.00666458,2289.0,2288.9,6.13546282]
[1750686246857,0.00666458,2289.0,2288.9,4.76567928]
[1750686247143,0.00666458,2289.0,2288.9,17.63099822]
[1750686247304,0.005,2289.4,2288.9,17.63098709]
[1750686247506,0.005,2289.4,2289.0,0.39676845]
[1750686248120,0.005,2289.4,2289.1,0.39676845]
[1750686248346,0.005,2289.4,2289.1,4.76518556]
[1750686248552,0.005,2290.1,2289.2,0.39676845]
[1750686248770,0.005,2290.1,2288.7,0.43574797]
[1750686248771,0.8309,2290.0,2288.9,0.55]
[1750686249065,0.8309,2290.0,2289.5,4.36776588]
[1750686249207,0.005,2290.1,2289.7,4.36727136]
[1750686249409,0.005,2290.1,2289.7,0.39676845]
[1750686249807,0.005,2290.1,2289.7,0.39597005]
[1750686250016,0.775,2291.6,2290.2,0.55]
[1750686250248,0.775,2291.6,2290.6,0.7818]
[1750686250418,0.33380454,2291.8,2291.6,4.36358141]
[1750686250749,0.03086128,2293.7,2293.6,4.35995814]
[1750686250951,14.28975576,2296.2,2293.6,4.35995814]
[1750686250952,4.20301924,2297.1,2294.0,10.0]
[1750686251153,0.2,2297.7,2295.3,17.22188251]
[1750686251154,0.7915,2296.9,2295.3,17.22188251]
[1750686251352,0.7915,2296.9,2296.3,12.86531894]
[1750686251353,1.53368667,2296.9,2296.3,12.86531894]
[1750686251558,0.2262884,2297.0,2296.3,2.907]
[1750686251844,0.2262884,2297.0,2296.9,14.3536941]
[1750686252052,23.36631894,2299.6,2296.9,14.3536941]
[1750686252053,0.8189,2298.9,2297.1,4.35331504]
[1750686252236,0.8189,2298.9,2297.0,10.7872]
[1750686252237,0.57878549,2298.8,2297.4,12.86531894]
[1750686252437,0.00664461,2299.0,2298.3,4.35093321]
[1750686252650,0.00664461,2299.0,2298.9,4.34990647]
[1750686252813,0.757,2301.4,2299.6,5.17378236]
[1750686253015,6.47521347,2303.2,2299.6,5.17378236]
[1750686253016,4.65,2303.3,2299.8,3.737126]
[1750686253264,8.73096344,2303.4,2300.0,12.86531894]
[1750686253265,8.99197933,2303.1,2300.0,12.86531894]
[1750686253413,8.99197933,2303.1,2299.9,6.85500084]
[1750686253414,0.5,2303.1,2299.9,2.507]
[1750686253638,5.65019348,2303.0,2299.6,0.8252]
[1750686253902,12.86531894,2302.9,2299.6,0.8252]
[1750686254109,1.41732779,2302.8,2299.6,0.8252]
[1750686254246,0.9450478,2303.3,2301.5,11.76122739]
[1750686254444,0.9450478,2303.3,2301.6,10.0]
[1750686254694,0.9450478,2303.3,2300.7,4.34650323]
[1750686254886,0.9450478,2303.3,2300.5,0.7502]
[1750686254887,7.9450478,2303.3,2300.5,0.7502]
[1750686255188,7.9450478,2303.3,2300.2,16.10854525]
[1750686255189,1.34450478,2303.2,2299.6,11.76122739]
[1750686255338,7.9450478,2303.3,2301.0,10.0]
[1750686255538,7.9450478,2303.3,2303.2,4.34178534]
[1750686255744,7.9450478,2303.3,2303.2,0.36244468]
[1750686255984,7.9450478,2303.3,2301.6,10.0]
[1750686256141,7.9450478,2303.3,2301.1,4.34574768]
[1750686256142,0.5581,2303.2,2301.1,4.34574768]
[1750686256496,7.9450478,2303.3,2301.7,4.34461484]
[1750686256637,7.9450478,2303.3,2301.6,11.76122739]
[1750686256638,7.9450478,2303.3,2301.2,14.34555883]
[1750686256845,0.5,2305.3,2301.2,14.34555883]
[1750686256846,0.5581,2306.4,2303.1,4.34197386]
[1750686257187,0.5581,2306.4,2302.0,0.5]
[1750686257188,0.8263,2305.3,2301.7,4.34461484]
[1750686257343,0.36245166,2305.2,2302.3,4.3434826]
[1750686257543,10.469,2305.1,2301.1,0.69977246]
[1750686257745,10.469,2305.1,2302.6,4.34289181]
[1750686257746,0.7628,2305.0,2302.6,4.34289181]
[1750686258063,0.7628,2305.0,2301.2,0.8061]
[1750686258064,0.37196755,2304.9,2302.1,0.8061]
[1750686258454,2.115955,2305.8,2302.2,5.60034243]
[1750686258663,2.115955,2305.8,2302.6,4.3429167]
[1750686258887,2.115955,2305.8,2302.2,1.25673274]
[1750686258888,2.48754452,2305.8,2302.2,1.25673274]
[1750686259040,0.8181,2305.7,2302.3,11.76122739]
[1750686259241,0.8181,2305.7,2302.1,0.8061]
[1750686259242,0.37158952,2305.6,2302.9,11.76122739]
[1750686259505,0.8181,2305.7,2302.2,11.76122739]
[1750686259665,0.8067,2305.2,2301.9,4.34408092]
[1750686259979,0.8067,2305.2,2301.6,11.76122739]
[1750686259980,0.5,2304.9,2301.6,11.76122739]
[1750686260184,1.05,2304.8,2301.7,1.17612274]
[1750686260488,1.05,2304.8,2301.5,1.172]
[1750686260489,5.14567798,2304.7,2301.5,1.172]
[1750686260649,22.26122739,2304.6,2300.9,11.76122739]
[1750686260985,10.457,2304.7,2300.9,11.76122739]
[1750686260986,0.8067,2304.4,2301.4,4.34500237]
[1750686261207,0.8067,2304.4,2301.1,4.34572683]
[1750686261208,10.5,2304.2,2301.1,4.34572683]
[1750686261411,10.5,2304.2,2301.5,1.305119]
[1750686261412,0.7623,2304.1,2301.5,1.305119]
[1750686261610,0.7623,2303.7,2301.5,1.305119]
[1750686261800,0.5,2303.4,2301.5,1.305119]
[1750686261977,11.76122739,2302.9,2299.9,0.7804]
[1750686262179,10.0,2302.7,2300.6,1.306207]
[1750686262405,0.7745,2302.6,2299.2,0.8222]
[1750686262581,4.34483892,2301.6,2299.3,0.36305945]
[1750686262785,0.7745,2301.5,2299.8,1.306668]
[1750686262969,0.7745,2301.5,2299.8,1.66964852]
[1750686263172,11.76122739,2300.9,2299.9,0.36296474]
[1750686263370,10.7745,2300.8,2299.8,1.306668]
[1750686263601,11.93058831,2300.7,2298.0,0.8222]
[1750686263800,11.93058831,2300.7,2296.0,2.17588682]
[1750686263801,0.7745,2300.6,2298.1,1.307497]
[1750686263984,0.7745,2300.6,2297.5,0.8222]
[1750686264189,0.7745,2300.6,2297.6,11.76122739]
[1750686264497,0.7745,2300.6,2297.6,1.307751]
[1750686264696,11.76122739,2299.7,2297.6,1.307751]
[1750686264900,11.76122739,2299.7,2294.9,2.186828]
[1750686264901,10.0,2299.0,2297.7,0.36331227]
[1750686265087,10.0,2298.8,2297.7,0.36331227]
[1750686265415,0.7829,2298.5,2295.3,0.787]
[1750686265607,10.0,2298.0,2295.3,0.787]
[1750686265799,1.90313831,2297.9,2295.3,0.787]
[1750686265998,0.7829,2298.3,2295.6,11.76122739]
[1750686266318,0.7829,2298.3,2295.9,1.308178]
[1750686267100,0.82279268,2298.8,2296.0,0.8318]
[1750686267300,0.37196755,2298.7,2296.0,0.8318]
[1750686267477,0.7829,2298.6,2296.0,0.8318]
[1750686267676,10.37196755,2298.5,2295.9,1.308178]
[1750686267879,0.7829,2297.8,2295.9,1.308178]
[1750686268103,0.37196755,2297.7,2295.9,1.308178]
[1750686270615,0.37196755,2297.0,2294.8,16.11884235]
[1750686270821,0.37196755,2297.0,2294.9,1.70329756]
[1750686270988,0.37196755,2297.0,2294.6,1.309532]
[1750686271413,0.37196755,2297.0,2294.9,11.76122739]
[1750686271590,0.37196755,2297.0,2295.6,0.8152]
[1750686271790,0.37196755,2297.0,2295.7,0.55]
[1750686272004,0.37196755,2297.0,2295.9,10.55]
[1750686272205,0.37196755,2297.0,2296.1,0.55]
[1750686272515,0.37196755,2297.0,2295.6,0.8152]
[1750686273308,0.37196755,2297.0,2295.7,0.55]
[1750686274186,0.37196755,2297.0,2295.6,0.8152]
[1750686274496,0.37196755,2297.0,2296.0,4.35540069]
[1750686274698,0.37196755,2297.0,2296.1,1.61166281]
[1750686275039,0.37196755,2297.0,2296.2,0.55]
[1750686275330,0.37196755,2297.0,2295.7,4.35593502]
[1750686275487,0.37196755,2297.0,2295.6,11.24264102]
[1750686275689,0.37196755,2297.0,2295.7,0.55]
[1750686275882,0.37196755,2297.0,2295.9,0.55]
[1750686276656,0.37196755,2297.0,2295.8,1.1792641]
[1750686277746,0.7772,2296.9,2294.8,0.7932]
[1750686278041,0.37028,2296.8,2295.0,11.76122739]
[1750686278444,0.37028,2296.8,2294.9,21.76122739]
[1750686278614,0.37028,2296.8,2295.2,0.7]
[1750686279037,0.37028,2296.8,2295.4,10.0]
[1750686279243,0.37028,2296.8,2294.9,11.76122739]
[1750686279244,0.37028,2296.8,2295.0,10.0]
[1750686279562,0.37028,2296.8,2294.8,0.7932]
[1750686280075,0.37028,2296.8,2294.3,16.1198076]
[1750686280208,0.37028,2296.8,2294.4,11.76122739]
[1750686280520,0.37028,2296.8,2294.6,6.09698845]
[1750686280710,0.37028,2296.8,2294.7,0.60969884]
[1750686281132,0.37028,2296.8,2294.6,1.7390392]
[1750686281442,0.55,2296.7,2294.6,1.7390392]
[1750686281646,0.37028,2296.8,2294.6,1.7390392]
[1750686281647,0.55,2296.3,2294.6,1.7390392]
[1750686281849,0.55,2295.9,2293.7,0.43599581]
[1750686282047,0.55,2295.9,2292.6,4.70904312]
[1750686282048,0.7568,2295.4,2294.2,0.7947]
[1750686282211,0.7568,2295.4,2293.0,0.43089763]
[1750686282212,0.7568,2295.2,2293.0,0.43089763]
[1750686282410,0.55,2294.9,2292.7,1.310942]
[1750686282639,0.7568,2294.8,2292.7,1.74681102]
[1750686283044,0.7568,2294.8,2293.1,4.36078976]
[1750686283240,0.7568,2294.8,2293.2,0.43607898]
[1750686283440,0.7568,2294.8,2292.7,13.50803841]
[1750686283653,0.7568,2294.8,2292.7,1.74681102]
[1750686283850,0.55,2294.7,2292.7,1.74681102]
[1750686284050,0.55,2294.5,2292.7,0.43586902]
[1750686284252,0.7965,2294.4,2292.6,0.3472012]
[1750686284432,0.55,2294.3,2292.6,0.3472012]
[1750686284950,0.8077,2293.7,2292.6,0.3472012]
[1750686285126,10.0,2293.5,2292.6,0.3472012]
[1750686285455,10.0,2293.5,2290.3,4.36621593]
[1750686285456,0.55,2293.2,2290.4,0.8067]
[1750686285619,0.55,2293.4,2290.4,0.8067]
[1750686285821,0.55,2293.0,2291.6,1.311679]
[1750686286173,0.55,2293.0,2290.7,4.36544154]
[1750686286361,0.36962561,2293.1,2291.1,1.312098]
[1750686286561,0.4861,2293.0,2291.4,5.06763982]
[1750686286765,0.4861,2293.0,2291.5,0.50676398]
[1750686287441,0.4861,2293.0,2291.5,0.55]
[1750686287639,0.4861,2293.0,2291.4,0.7036]
[1750686288027,0.4861,2293.0,2291.4,7.0]
[1750686288437,0.55,2292.9,2291.4,7.0]
[1750686288643,0.4861,2292.8,2291.4,7.0]
[1750686288827,0.4861,2292.8,2291.5,0.7]
[1750686289383,0.4861,2292.8,2291.5,10.7]
[1750686289879,0.4861,2292.8,2291.5,0.7]
[1750686290166,0.4861,2292.8,2291.6,4.36373952]
[1750686290365,0.4861,2292.8,2291.5,10.7]
[1750686290682,0.4861,2292.8,2291.6,1.77]
[1750686290831,0.4861,2292.8,2291.9,4.36317438]
[1750686291026,0.4861,2292.8,2291.8,4.3633566]
[1750686291357,0.4861,2292.8,2291.7,0.55]
[1750686291661,0.36962561,2293.1,2292.3,4.36243074]
[1750686291823,0.36962561,2293.1,2292.4,1.43624307]
[1750686292026,0.36962561,2293.1,2292.5,4.36191011]
[1750686292360,0.36962561,2293.1,2292.3,0.55]
[1750686292660,0.36962561,2293.1,2293.0,4.36109899]
[1750686292863,0.4861,2294.0,2293.5,10.0]
[1750686293063,0.4861,2294.5,2293.7,14.35966511]
[1750686293367,0.4861,2294.5,2293.8,0.38856508]
[1750686293540,0.4861,2294.5,2293.0,0.38856508]
[1750686293735,0.4861,2294.5,2292.7,0.55]
[1750686293966,0.4861,2294.5,2293.0,4.36095676]
[1750686294128,0.4861,2294.5,2292.9,0.55]
[1750686294459,0.4861,2294.5,2292.8,0.38941155]
[1750686294460,0.4861,2294.5,2293.9,4.35922556]
[1750686294660,0.4861,2294.5,2293.9,0.43592256]
[1750686294831,0.4861,2294.5,2293.9,4.79522536]
[1750686295032,0.4861,2294.5,2293.9,0.43592256]
[1750686295232,0.4861,2294.5,2294.0,4.35914979]
[1750686295432,0.4861,2294.5,2294.1,4.35884287]
[1750686295630,0.4861,2294.5,2293.9,0.43592256]
[1750686295830,0.4861,2294.5,2293.8,4.35940532]
[1750686296055,0.4861,2294.5,2292.1,6.50444354]
[1750686296056,0.4861,2294.5,2293.2,10.0]
[1750686296259,0.4861,2294.5,2292.6,12.57702739]
[1750686296472,0.4861,2294.5,2292.7,0.39005024]
[1750686296670,0.4861,2294.5,2293.0,4.36102506]
[1750686296983,0.4861,2294.5,2292.6,5.17763403]
[1750686297145,0.4861,2294.1,2292.0,12.54372739]
[1750686297462,0.4861,2294.1,2292.5,4.36190442]
[1750686297865,0.4861,2294.1,2292.0,12.54372739]
[1750686298065,0.4861,2294.1,2292.7,4.36147997]
[1750686298282,0.4861,2294.1,2292.8,0.436148]
[1750686298436,0.4861,2294.1,2292.5,10.0]
[1750686298769,0.4861,2294.1,2292.7,4.36153285]
[1750686298973,0.4861,2294.1,2292.4,10.0]
[1750686299174,0.4861,2294.1,2292.7,4.36152421]
[1750686299369,0.4861,2294.1,2292.0,12.98289828]
[1750686299585,0.4861,2294.1,2292.1,1.29828983]
[1750686299787,0.4861,2294.1,2292.4,4.36214018]
[1750686300082,0.4861,2294.1,2292.6,4.36167815]
[1750686300297,0.4861,2295.5,2293.7,0.8325]
[1750686300433,0.4861,2295.5,2294.0,11.76122739]
[1750686300635,0.4861,2295.5,2294.2,0.55]
[1750686300935,4.35659378,2295.4,2292.9,4.3611494]
[1750686301271,0.55,2295.1,2293.2,11.76122739]
[1750686301472,0.4861,2295.2,2293.3,0.8325]
[1750686301834,0.4861,2295.2,2292.9,4.36125547]
[1750686302175,0.4861,2296.4,2295.0,4.35729847]
[1750686302358,1.310504,2296.9,2295.5,10.0]
[1750686302675,0.4861,2297.2,2295.8,11.76122739]
[1750686302879,1.309352,2298.8,2295.9,10.0]
[1750686303028,0.4861,2298.6,2296.0,0.55]
[1750686303236,0.4861,2298.6,2296.7,0.8306]
[1750686303434,0.4861,2298.6,2297.0,11.76122739]
[1750686303686,0.4861,2298.6,2296.9,10.55]
[1750686303846,0.4861,2299.2,2297.7,11.76122739]
[1750686304033,0.4861,2299.2,2297.3,6.851418]
[1750686304034,0.4861,2300.4,2297.9,11.76122739]
[1750686304274,0.4861,2300.4,2298.5,11.76122739]
[1750686304474,0.4861,2300.4,2298.1,0.55]
[1750686304475,1.308373,2300.4,2298.7,0.55]
[1750686304643,1.308373,2300.4,2297.9,12.2069271]
[1750686304644,10.9651,2300.3,2297.9,0.44569971]
[1750686304843,10.9651,2300.3,2298.0,0.55]
[1750686305043,0.4861,2300.1,2297.3,0.7984]
[1750686305276,0.4861,2299.4,2297.3,4.35280404]
[1750686305443,0.4861,2299.4,2296.7,0.43993748]
[1750686305645,0.4861,2298.9,2296.0,0.805]
[1750686305972,0.4861,2298.4,2296.0,0.805]
[1750686306199,0.55,2298.3,2296.0,1.24386259]
[1750686306474,10.4861,2298.4,2296.0,1.24386259]
[1750686306635,0.4861,2298.4,2296.7,4.35393728]
[1750686306974,0.4861,2298.4,2296.1,0.55994339]
[1750686306975,10.4861,2298.4,2296.6,11.76122739]
[1750686307175,10.4861,2298.4,2296.1,0.55994339]
[1750686307470,0.4861,2298.2,2295.6,1.309543]
[1750686307860,0.4861,2298.2,2296.1,4.35517795]
[1750686308065,0.4861,2298.2,2296.2,0.55]
[1750686308695,0.4861,2298.2,2296.2,4.90488977]
[1750686308848,0.4861,2298.2,2296.1,10.0]
[1750686309170,0.55,2297.7,2295.6,1.309543]
[1750686309333,0.4861,2297.9,2295.6,1.309543]
[1750686309540,0.4861,2297.9,2295.8,0.7]
[1750686309771,0.4861,2297.9,2295.6,1.309543]
[1750686310003,0.55,2297.4,2295.6,1.309543]
[1750686310171,0.4861,2297.1,2295.6,1.309543]
[1750686310371,0.4861,2297.1,2294.1,0.7973]
[1750686310372,0.55,2297.0,2294.2,4.35881788]
[1750686310572,0.55,2296.6,2294.7,1.309652]
[1750686310773,11.76122739,2297.2,2294.7,1.309652]
[1750686310774,10.0,2296.4,2294.7,1.309652]
[1750686310976,10.0,2296.4,2294.0,11.76122739]
[1750686311139,0.4861,2296.3,2294.7,1.309995]
[1750686311659,0.55,2296.2,2294.7,1.309995]
[1750686311861,0.5,2296.0,2293.5,1.23011261]
[1750686312064,0.4861,2296.1,2293.6,1.310333]
[1750686312258,0.4861,2295.9,2293.7,0.25404456]
[1750686312453,0.4861,2295.4,2293.6,1.310333]
[1750686313164,0.4861,2295.4,2293.6,0.810333]
[1750686313577,0.4861,2295.4,2294.4,4.35837564]
[1750686313783,0.4861,2295.4,2294.4,0.55]
[1750686313995,0.4861,2295.4,2294.1,0.55]
[1750686314169,0.4861,2295.4,2294.4,4.35843586]
[1750686314376,0.4861,2295.4,2294.5,4.35823614]
[1750686314589,5.443,2297.8,2295.1,11.76122739]
[1750686314808,0.4861,2296.8,2295.2,10.55]
[1750686314949,0.4861,2296.8,2295.5,4.35634937]
[1750686315306,0.4861,2296.8,2295.3,6.58783034]
[1750686315443,0.4861,2296.8,2294.6,11.76122739]
[1750686315647,0.4861,2296.8,2295.9,0.55]
[1750686315954,0.4861,2296.8,2295.4,0.55]
[1750686316155,0.4861,2296.8,2295.1,10.55]
[1750686316391,0.4861,2296.8,2295.6,0.55]
[1750686316619,0.4861,2296.8,2296.7,4.35407323]
[1750686316819,0.4861,2296.8,2295.9,10.0]
[1750686316820,0.4861,2297.8,2296.5,4.35434544]
[1750686316991,0.005,2297.9,2297.0,10.55]
[1750686317183,0.005,2297.9,2297.4,0.55]
[1750686317530,0.005,2297.9,2297.8,10.55]
[1750686317841,0.005,2297.9,2297.8,14.90198885]
[1750686318144,0.4861,2300.7,2298.3,0.55]
[1750686318426,0.4861,2300.7,2297.9,0.8011]
[1750686318618,0.4861,2300.7,2298.5,0.55]
[1750686318827,0.4861,2300.7,2299.2,10.55]
[1750686318974,0.4861,2300.7,2299.2,0.55]
[1750686319176,0.4861,2300.7,2299.4,10.55]
[1750686319416,0.4861,2300.7,2299.4,4.34896059]
[1750686319618,0.4861,2300.7,2299.1,0.8025]
[1750686319935,0.4861,2300.7,2298.3,0.55]
[1750686320088,0.4861,2300.7,2299.8,10.0]
[1750686320287,0.4861,2302.0,2300.0,10.0]
[1750686320516,0.4861,2302.0,2300.3,4.34720905]
[1750686320694,0.4861,2302.0,2300.2,4.34741118]
[1750686321018,0.4861,2302.0,2300.7,10.0]
[1750686321217,0.4861,2302.0,2300.1,0.55]
[1750686321436,0.4861,2302.0,2300.3,0.55]
[1750686321647,0.4861,2302.0,2299.6,10.0]
[1750686321648,4.83015154,2302.0,2299.6,10.0]
[1750686321835,10.0,2301.3,2298.9,4.34977666]
[1750686322147,10.4861,2301.3,2298.3,0.7602]
[1750686322296,0.55,2301.0,2298.8,4.34990654]
[1750686322500,0.4861,2301.1,2299.2,4.34928465]
[1750686322736,0.4861,2301.1,2298.8,0.43499065]
[1750686322899,0.4861,2301.1,2298.9,10.0]
[1750686323094,0.4861,2301.1,2298.4,11.76122739]
[1750686323294,0.4861,2301.1,2298.5,10.0]
[1750686323610,0.4861,2301.1,2299.2,10.0]
[1750686324092,0.4861,2301.1,2298.2,10.0]
[1750686324300,0.4861,2301.1,2298.8,10.0]
[1750686324644,0.4861,2301.1,2298.9,10.0]
[1750686324963,0.55,2300.7,2298.4,1.07602]
[1750686325105,0.4861,2300.6,2298.9,11.76122739]
[1750686325431,0.4861,2300.6,2297.8,0.6033361]
[1750686325633,4.83280278,2300.6,2297.9,4.35179946]
[1750686325843,0.4861,2300.4,2299.0,1.307574]
[1750686326440,0.4861,2300.2,2297.8,0.6033361]
[1750686326642,0.4861,2300.2,2298.6,4.35031594]
[1750686326796,0.4861,2300.2,2299.1,0.55]
[1750686327002,0.4861,2300.2,2299.2,0.36307524]
[1750686327322,10.0,2300.4,2297.9,1.307699]
[1750686327499,4.89858236,2299.6,2296.2,0.8087]
[1750686327704,0.55,2299.4,2296.7,1.308404]
[1750686328004,10.55,2298.9,2296.8,0.36345463]
[1750686328216,10.457,2298.8,2296.4,11.76122739]
[1750686328547,0.34866233,2298.7,2297.0,11.76122739]
[1750686328696,0.123,2298.7,2297.4,10.0]
[1750686328902,0.22717456,2298.6,2296.8,1.308404]
[1750686329142,0.22716872,2298.5,2297.3,4.35281973]
[1750686329441,0.22716737,2298.4,2296.8,5.66227193]
[1750686329654,0.22716737,2298.3,2296.8,1.308404]
[1750686329810,0.22716737,2298.2,2297.3,4.35284049]
[1750686330008,0.123,2298.7,2297.3,0.87059583]
[1750686330259,0.123,2298.5,2296.8,1.308404]
[1750686330462,0.123,2298.1,2295.7,0.7682]
[1750686330755,0.123,2298.1,2296.1,1.309]
[1750686330756,0.123,2297.8,2296.1,1.309]
[1750686330974,0.123,2297.6,2295.2,0.7682]
[1750686331256,10.0,2298.0,2295.7,1.309269]
[1750686331257,0.123,2297.4,2295.7,1.309269]
[1750686331404,0.2271447,2297.3,2296.1,10.0]
[1750686331608,0.123,2297.4,2295.9,4.3555904]
[1750686331609,0.123,2297.4,2296.4,0.55]
[1750686332042,0.123,2297.4,2296.5,10.0]
[1750686332206,0.123,2297.4,2296.7,10.0]
[1750686332408,10.458,2299.4,2297.0,4.35347799]
[1750686332630,1.53593584,2299.3,2297.4,4.35266539]
[1750686332845,1.8148507,2299.2,2297.5,0.43526654]
[1750686333017,0.58017118,2299.1,2297.6,0.55]
[1750686333217,0.58017118,2299.0,2297.6,10.55]
[1750686333446,0.58017118,2298.9,2298.2,4.35112701]
[1750686333673,10.458,2299.4,2297.9,0.55]
[1750686333674,0.58017118,2298.8,2298.1,10.55]
[1750686333808,20.34445772,2301.8,2298.3,10.0]
[1750686333809,10.46,2300.6,2298.3,10.0]
[1750686334130,1.27318607,2300.5,2298.6,4.3504742]
[1750686334304,1.046,2300.5,2298.6,0.55]
[1750686334508,0.22719147,2300.4,2298.9,0.55]
[1750686334709,11.765204,2301.8,2298.9,0.55]
[1750686334925,0.22720709,2301.7,2299.5,0.55]
[1750686335159,10.458,2303.0,2301.4,4.34505992]
[1750686335450,0.073,2301.9,2300.2,0.55]
[1750686335745,0.073,2301.9,2300.0,12.58082739]
[1750686335746,0.22671461,2301.8,2300.5,1.306307]
[1750686335947,0.073,2301.6,2300.5,1.306307]
[1750686336149,0.073,2301.3,2298.7,0.8111]
[1750686336354,0.073,2301.1,2299.2,0.234097]
[1750686336666,10.458,2301.5,2299.7,4.34828363]
[1750686336667,0.073,2300.9,2299.7,4.34828363]
[1750686336859,0.073,2300.9,2299.8,0.43482836]
[1750686337008,0.073,2300.9,2299.9,0.55]
[1750686337211,0.073,2300.9,2299.6,10.0]
[1750686337412,0.073,2300.9,2300.1,0.55]
[1750686337612,0.073,2301.7,2300.4,4.34691992]
[1750686337809,0.073,2301.7,2300.7,0.55]
[1750686338016,0.073,2302.4,2301.1,0.55]
[1750686338248,0.073,2302.4,2300.9,0.55]
[1750686338460,0.073,2302.4,2300.4,14.34693302]
[1750686338756,0.073,2302.4,2301.1,4.34573866]
[1750686338967,0.073,2302.4,2300.5,1.4346933]
[1750686339270,0.073,2301.9,2299.9,4.34786071]
[1750686339564,0.073,2301.6,2299.1,16.1106221]
[1750686339863,0.22635031,2301.5,2300.1,4.34749037]
[1750686340163,0.22635031,2301.4,2299.8,4.34810045]
[1750686340334,0.22635031,2301.3,2299.9,10.0]
[1750686340537,0.073,2301.1,2299.2,1.61106221]
[1750686340720,0.22635031,2301.0,2299.8,4.34803528]
[1750686340925,0.22635031,2301.0,2298.9,13.86358539]
[1750686340926,0.22635031,2301.0,2298.9,6.45220185]
[1750686341164,0.22635031,2301.0,2299.4,4.34881284]
[1750686341373,0.29935031,2300.9,2299.7,4.34828797]
[1750686341575,0.073,2300.6,2298.9,1.307358]
[1750686341745,0.22728813,2300.5,2298.6,4.3504742]
[1750686341936,0.073,2300.6,2299.5,4.34864628]
[1750686341937,0.22728813,2300.4,2299.5,4.34864628]
[1750686342252,0.073,2300.6,2298.8,4.3500957]
[1750686342253,0.22728813,2300.3,2298.8,10.0]
[1750686342454,0.22728813,2300.2,2299.2,10.0]
[1750686342656,0.073,2300.0,2298.5,4.35053052]
[1750686342864,0.22746012,2299.9,2299.0,4.34958025]
[1750686343037,0.073,2300.0,2299.0,4.34958025]
[1750686343038,0.22746012,2299.8,2299.6,4.3484016]
[1750686343235,0.073,2300.0,2299.0,0.86995264]
[1750686343471,0.22746076,2299.9,2298.7,4.35017977]
[1750686343672,0.22746076,2299.8,2298.8,4.34998772]
[1750686343831,0.22746076,2299.7,2298.3,10.0]
[1750686344037,0.22746076,2299.6,2298.2,10.0]
[1750686344241,0.22746076,2299.5,2298.0,1.307768]
[1750686344595,0.073,2299.3,2296.9,11.76122739]
[1750686344735,0.623,2299.0,2297.5,4.35239812]
[1750686344936,0.623,2299.0,2297.0,1.17612274]
[1750686344937,0.22746076,2298.9,2297.0,1.17612274]
[1750686345140,0.22746076,2298.8,2297.1,4.35331504]
[1750686345445,0.073,2299.0,2297.0,5.52947797]
[1750686345446,0.22746076,2298.7,2297.3,4.35281771]
[1750686345652,0.22746076,2298.6,2297.7,14.35206953]
[1750686345847,0.22746076,2298.5,2297.8,11.43520695]
[1750686346170,0.22746076,2298.4,2297.8,1.43520695]
[1750686346357,0.22832875,2298.3,2297.3,11.76122739]
[1750686346537,0.2283834,2298.2,2297.4,4.35266698]
[1750686346743,0.073,2298.1,2297.0,1.17612274]
[1750686346937,0.073,2298.1,2296.7,11.76122739]
[1750686346938,0.073,2298.1,2296.7,16.11526469]
[1750686347138,0.073,2298.1,2296.7,23.11524625]
[1750686347353,0.073,2298.1,2296.7,7.0]
[1750686347675,0.073,2298.1,2296.8,4.35373513]
[1750686347879,0.073,2298.1,2296.1,0.8119]
[1750686347880,0.073,2298.1,2296.5,4.35427503]
[1750686348085,0.073,2298.1,2296.8,10.0]
[1750686348405,0.073,2298.1,2296.7,0.55]
[1750686348561,0.073,2298.1,2297.2,4.30310105]
[1750686348887,10.452,2298.0,2296.0,4.35540069]
[1750686349188,10.452,2298.0,2296.3,4.35475737]
[1750686349390,11.0452,2297.9,2296.1,0.36356544]
[1750686349552,0.55,2297.8,2296.1,0.36356544]
[1750686349968,11.0452,2297.9,2296.1,0.36356544]
[1750686350281,11.0452,2297.9,2295.5,10.0]
[1750686350490,11.0452,2297.9,2295.9,10.0]
[1750686350698,10.452,2298.0,2296.6,0.55]
[1750686351008,10.452,2298.0,2297.5,4.35240539]
[1750686351283,5.437,2299.9,2297.4,4.35263569]
[1750686351284,10.455,2299.1,2297.4,4.35263569]
[1750686351444,10.455,2299.1,2297.8,4.35187358]
[1750686351645,11.5005,2299.1,2297.2,0.55]
[1750686351884,0.023,2299.0,2297.7,4.35211689]
[1750686352100,0.023,2299.0,2297.2,0.55]
[1750686352248,0.023,2299.0,2297.5,4.90251333]
[1750686352442,0.023,2299.0,2297.0,5.17430296]
[1750686352679,0.023,2298.9,2295.9,4.88562369]
[1750686352992,0.023,2298.5,2296.5,4.35431035]
[1750686353200,0.023,2298.5,2296.3,0.39219088]
[1750686353360,0.023,2298.5,2296.3,0.39237052]
[1750686353691,0.023,2298.5,2296.2,0.71941241]
[1750686353856,10.55,2298.5,2296.3,4.35483168]
[1750686354181,0.023,2298.2,2296.4,15.25822241]
[1750686354586,0.023,2298.2,2296.4,10.90368702]
[1750686354883,0.023,2298.2,2296.4,0.90368702]
[1750686355302,0.023,2298.0,2295.7,1.309229]
[1750686355623,0.023,2297.9,2295.7,1.309229]
[1750686355783,0.023,2297.4,2295.7,1.309229]
[1750686356132,0.023,2297.1,2295.1,4.3569504]
[1750686356432,0.023,2297.1,2294.5,11.76122739]
[1750686356433,0.023,2296.8,2293.9,11.76122739]